bitfinex/quotes_SOLUSD_20250722
["timestamp","ask_amount","ask_price","bid_price","bid_amount"]
[1753167638421,5.02462064,199.02,198.99,4.54256358]
[1753167638621,0.06,199.03,199.0,4.54256358]
[1753167638837,0.06,199.03,199.01,4.54256358]
[1753167639242,0.06,199.03,199.01,7.2685424]
[1753167639850,26.06,199.03,199.01,7.2685424]
[1753167640144,26.06,199.03,199.0,7.2685424]
[1753167640936,26.0,198.98,198.95,0.03]
[1753167641346,26.0,198.98,198.95,7.9885424]
[1753167642117,26.0,198.98,198.95,7.2985424]
[1753167643022,31.02568538,198.98,198.95,7.2985424]
[1753167643223,26.0,198.98,198.95,7.2985424]
[1753167644140,26.0,198.98,198.96,7.2685424]
[1753167645047,26.0,198.98,198.95,7.2985424]
[1753167645347,26.0,198.98,198.96,7.2685424]
[1753167646066,69.6,199.01,198.97,7.2685424]
[1753167646237,0.06,199.03,199.0,7.2685424]
[1753167646443,0.06,199.03,199.01,7.2685424]
[1753167646639,0.06,199.03,198.99,7.2685424]
[1753167646839,26.0,198.97,198.95,0.03]
[1753167647036,7.9285424,198.96,198.95,0.03]
[1753167647245,43.6885424,198.96,198.95,0.03]
[1753167648149,26.0,198.93,198.91,0.03]
[1753167648352,33.2685424,198.92,198.91,0.03]
[1753167648645,69.6885424,198.92,198.91,0.03]
[1753167648856,74.71568899,198.92,198.91,0.03]
[1753167649382,38.95568899,198.92,198.91,0.03]
[1753167649571,26.0,198.92,198.91,0.03]
[1753167650471,31.02714659,198.92,198.91,0.03]
[1753167650655,26.0,198.92,198.91,0.03]
[1753167650858,31.02714659,198.92,198.91,0.03]
[1753167651161,31.68714659,198.92,198.91,0.03]
[1753167651550,31.02714659,198.92,198.91,0.03]
[1753167651749,38.95568899,198.92,198.91,0.03]
[1753167651965,74.71568899,198.92,198.91,0.03]
[1753167652262,48.71568899,198.92,198.91,0.03]
[1753167654355,62.42,198.92,198.91,0.03]
[1753167654551,66.78714659,198.92,198.91,0.03]
[1753167654758,61.76,198.92,198.91,0.03]
[1753167655475,26.0,198.92,198.91,0.03]
[1753167656878,0.66,199.0,198.91,7.9885424]
[1753167657058,35.76,198.99,198.94,7.2685424]
[1753167657254,36.42,199.0,198.95,7.2685424]
[1753167657452,7.2685424,198.98,198.92,7.2685424]
[1753167657771,26.0,198.95,198.93,7.2685424]
[1753167657972,26.0,198.95,198.94,7.2685424]
[1753167658163,26.0,198.96,198.91,0.72]
[1753167658362,26.0,198.96,198.94,7.2685424]
[1753167658559,26.0,198.96,198.95,7.2685424]
[1753167658759,69.6,198.99,198.95,11.21671112]
[1753167658970,26.0,198.98,198.97,7.2685424]
[1753167659157,26.0,198.98,198.97,10.52671112]
[1753167659782,111.0446607,199.02,198.97,10.52671112]
[1753167659983,26.0,198.99,198.98,10.52671112]
[1753167660179,26.0,198.97,198.94,7.2685424]
[1753167660381,26.0,198.97,198.91,0.03]
[1753167660382,26.0,198.97,198.93,7.2685424]
[1753167660891,26.66,198.97,198.93,7.2685424]
[1753167661094,26.0,198.97,198.94,0.69]
[1753167661277,35.76,199.0,198.96,7.2685424]
[1753167661474,0.66,198.99,198.94,7.2685424]
[1753167661778,7.2685424,198.95,198.91,0.03]
[1753167661970,26.0,198.92,198.91,0.03]
[1753167662172,76.8685424,198.95,198.91,0.03]
[1753167662173,7.2685424,198.93,198.91,0.03]
[1753167662389,26.0,198.92,198.91,0.03]
[1753167662893,26.0,198.97,198.91,13.01592109]
[1753167663081,26.0,198.97,198.96,7.2685424]
[1753167663282,5.74482551,199.02,198.96,4.54510586]
[1753167663482,0.72,199.02,198.98,4.54510586]
[1753167663799,0.06,199.02,198.99,4.54510586]
[1753167664375,26.0,199.0,198.99,4.54510586]
[1753167664575,0.06,199.02,198.99,4.54510586]
[1753167664891,26.0,199.0,198.99,4.54510586]
[1753167665398,26.0,199.0,198.98,4.54510586]
[1753167666880,26.0,199.0,198.99,4.54510586]
[1753167667079,0.06,199.02,198.99,4.54510586]
[1753167667299,0.06,199.02,199.0,4.54510586]
[1753167667799,0.06,199.02,199.01,5.23510586]
[1753167668899,0.06,199.02,199.01,4.54510586]
[1753167669601,0.06,199.02,199.0,4.54510586]
[1753167669800,5.02487312,199.01,198.98,4.54510586]
[1753167670209,5.74487312,199.01,198.98,4.54510586]
[1753167670512,5.02487312,199.01,198.98,4.54510586]
[1753167671002,0.06,199.02,198.99,4.54510586]
[1753167671211,0.06,199.02,198.99,5.23510586]
[1753167671390,0.06,199.02,199.0,4.54510586]
[1753167671589,0.06,199.02,199.01,4.54510586]
[1753167671785,0.06,199.02,199.0,0.69]
[1753167672000,0.06,199.02,199.01,5.23510586]
[1753167672306,2.3727,199.09,199.04,26.0]
[1753167672307,0.06,199.09,199.04,26.0]
[1753167672516,0.2,199.13,199.09,42.78468397]
[1753167672684,0.1,199.17,199.13,16.78468397]
[1753167672887,0.1,199.17,199.13,63.27638983]
[1753167673188,0.1,199.17,199.15,16.78468397]
[1753167673387,0.1,199.17,199.16,7.85622175]
[1753167673603,0.1,199.17,199.16,8.33622175]
[1753167673800,0.1,199.17,199.16,13.35731032]
[1753167674109,0.1,199.17,199.16,3.31111589]
[1753167674309,0.1,199.17,199.16,4.54510586]
[1753167674489,0.1,199.17,199.16,7.85276695]
[1753167675417,0.1,199.17,199.16,10.56234683]
[1753167676190,5.84083647,199.17,199.16,3.30766109]
[1753167676422,7.25468574,199.17,199.16,3.30766109]
[1753167677198,0.1,199.18,199.16,3.30766109]
[1753167677400,0.1,199.18,199.09,35.76]
[1753167677401,5.12058439,199.18,199.17,3.30766109]
[1753167677597,0.1,199.18,199.17,3.30766109]
[1753167677807,0.1,199.18,199.17,10.56234683]
[1753167678407,0.1,199.18,199.17,3.30766109]
[1753167679311,5.84058439,199.18,199.17,3.30766109]
[1753167680895,31.84058439,199.18,199.17,3.30766109]
[1753167681096,31.12058439,199.18,199.17,3.30766109]
[1753167681329,26.1,199.18,199.17,3.30766109]
[1753167681502,0.1,199.18,199.17,3.30766109]
[1753167681695,5.12058439,199.18,199.17,3.30766109]
[1753167681896,5.84058439,199.18,199.17,3.30766109]
[1753167682213,13.09527013,199.18,199.17,3.30766109]
[1753167682606,5.84058439,199.18,199.17,3.30766109]
[1753167682807,13.09527013,199.18,199.17,3.30766109]
[1753167683216,5.84058439,199.18,199.17,3.30766109]
[1753167683550,26.0,199.16,199.04,1.36270529]
[1753167683825,7.25468574,199.1,199.04,43.66739103]
[1753167684005,5.74234945,199.11,199.06,7.25468574]
[1753167684407,5.74234945,199.11,199.04,36.41270529]
[1753167684408,12.27703519,199.11,199.05,7.25468574]
[1753167684607,12.27703519,199.11,199.04,43.66739103]
[1753167684608,7.25468574,199.1,199.04,43.66739103]
[1753167684827,7.97468574,199.1,199.04,36.41270529]
[1753167685123,7.25468574,199.09,199.04,36.41270529]
[1753167685322,0.72,199.08,199.04,36.41270529]
[1753167685725,26.0,199.06,199.04,0.67270529]
[1753167685947,38.99854909,199.05,199.04,0.67270529]
[1753167686106,31.74386335,199.05,198.97,36.43]
[1753167686314,7.25468574,199.03,198.97,42.99468574]
[1753167686722,26.0,199.02,198.97,42.99468574]
[1753167688313,12.27931958,199.02,198.97,35.74]
[1753167688531,7.25468574,198.99,198.95,0.03]
[1753167688933,7.97468574,198.98,198.95,0.03]
[1753167689317,0.72,198.97,198.95,0.03]
[1753167689522,7.97468574,198.97,198.95,0.03]
[1753167690161,0.72,198.96,198.95,0.03]
[1753167690548,7.25468574,198.98,198.95,0.03]
[1753167690872,7.97468574,198.96,198.95,0.03]
[1753167691045,26.72,199.0,198.95,0.03]
[1753167691248,26.0,198.98,198.95,7.97468574]
[1753167691553,26.0,198.98,198.95,0.03]
[1753167691732,0.72,198.97,198.95,0.03]
[1753167692340,33.25468574,198.98,198.95,0.03]
[1753167692542,72.06421666,199.02,198.95,0.03]
[1753167692750,26.0,198.99,198.97,7.25468574]
[1753167692954,26.0,198.99,198.96,7.25468574]
[1753167693331,26.0,199.0,198.97,7.94468574]
[1753167693533,26.0,199.0,198.97,7.25468574]
[1753167693935,33.25468574,199.0,198.95,0.03]
[1753167694134,0.72,198.99,198.95,0.03]
[1753167694960,31.02515872,199.0,198.95,7.28468574]
[1753167695675,26.0,199.0,198.96,3.68281856]
[1753167695843,5.02450228,199.03,198.97,11.6275043]
[1753167696031,26.0,199.03,198.98,4.37281856]
[1753167696231,69.6,199.04,199.01,7.25468574]
[1753167696457,5.02360463,199.07,199.02,10.9375043]
[1753167696667,5.02360463,199.07,199.03,3.68281856]
[1753167696847,0.72,199.09,199.04,10.9375043]
[1753167697047,5.74234945,199.11,199.05,3.68281856]
[1753167697277,12.99703519,199.11,199.06,3.68281856]
[1753167697478,0.72,199.11,199.07,3.68281856]
[1753167697686,5.74159284,199.14,199.08,3.68281856]
[1753167697877,12.99627858,199.14,199.09,3.68281856]
[1753167698083,26.0,199.11,199.1,3.68281856]
[1753167698384,5.0214001,199.15,199.1,3.68281856]
[1753167698680,5.7314001,199.15,199.11,3.68281856]
[1753167698991,26.0,199.13,199.12,3.68281856]
[1753167699580,69.6,199.16,199.12,3.68281856]
[1753167699778,69.6,199.16,199.13,3.68281856]
[1753167700093,0.1,199.18,199.15,7.25468574]
[1753167700258,0.1,199.18,199.16,3.68281856]
[1753167700456,0.1,199.18,199.17,3.68281856]
[1753167701387,0.1,199.18,199.17,3.67213857]
[1753167702382,0.00023835,199.18,199.17,11.62682431]
[1753167702686,69.66,199.22,199.17,11.62682431]
[1753167702860,5.78975583,199.22,199.18,3.67213857]
[1753167703060,5.78975583,199.22,199.19,3.67213857]
[1753167703284,5.78975583,199.22,199.2,3.67213857]
[1753167703583,5.07975583,199.22,199.21,3.67213857]
[1753167703781,12.33444157,199.22,199.21,3.67213857]
[1753167704180,13.04444157,199.22,199.21,3.67213857]
[1753167704494,26.0,199.19,199.16,7.25468574]
[1753167704655,26.0,199.19,199.17,3.67019997]
[1753167704868,26.0,199.19,199.18,3.67019997]
[1753167705069,33.25468574,199.19,199.18,3.67019997]
[1753167705288,33.25468574,199.19,199.18,3.56382281]
[1753167705481,33.96468574,199.19,199.18,3.56382281]
[1753167706506,0.71,199.19,199.18,3.56382281]
[1753167706673,0.06,199.22,199.18,3.56382281]
[1753167706872,26.0,199.2,199.19,3.56382281]
[1753167707292,0.06,199.22,199.19,3.56382281]
[1753167707475,0.06,199.22,199.18,7.25468574]
[1753167707476,0.06,199.22,199.2,3.56382281]
[1753167707676,0.06,199.22,199.21,3.56382281]
[1753167708075,26.06,199.22,199.21,10.81850855]
[1753167708276,26.06,199.22,199.21,3.56382281]
[1753167708937,0.06,199.22,199.21,4.26382281]
[1753167709122,0.06,199.22,199.21,10.81850855]
[1753167709426,0.06,199.22,199.21,26.0683351]
[1753167709734,0.06,199.22,199.21,33.32302084]
[1753167710104,0.06,199.22,199.21,28.30319252]
[1753167710309,0.06,199.22,199.21,33.32302084]
[1753167711007,0.1,199.25,199.21,33.32302084]
[1753167711008,0.1,199.25,199.22,16.78468397]
[1753167711211,0.1,199.25,199.24,24.03936971]
[1753167711410,12.53832778,199.39,199.24,24.03936971]
[1753167711411,0.71,199.38,199.25,16.78468397]
[1753167711724,6.0881,199.4,199.23,26.7]
[1753167711725,26.0,199.36,199.33,7.25468574]
[1753167712025,82.57998239,199.39,199.34,3.56382281]
[1753167712258,82.57998239,199.39,199.3,0.7]
[1753167712259,7.25468574,199.36,199.35,3.56382281]
[1753167712530,38.2707371,199.36,199.35,3.56382281]
[1753167712703,38.9807371,199.36,199.35,3.56382281]
[1753167713102,26.0,199.32,199.28,35.9]
[1753167713308,70.31,199.31,199.28,35.9]
[1753167713514,69.6,199.31,199.3,7.25468574]
[1753167713730,24.81086551,199.36,199.3,7.25468574]
[1753167713731,31.01605136,199.36,199.3,7.25468574]
[1753167713906,0.71,199.35,199.3,7.25468574]
[1753167714411,31.01605136,199.36,199.32,7.25468574]
[1753167714602,31.01605136,199.36,199.31,0.7]
[1753167714808,31.01605136,199.36,199.32,7.25468574]
[1753167715019,31.01605136,199.36,199.28,35.9]
[1753167715020,31.01605136,199.36,199.34,7.25468574]
[1753167715219,26.0,199.36,199.34,7.25468574]
[1753167715428,5.015583,199.38,199.35,7.25468574]
[1753167715804,5.015583,199.38,199.36,7.25468574]
[1753167716436,5.015583,199.38,199.35,7.25468574]
[1753167716611,5.01528838,199.4,199.37,7.25468574]
[1753167716818,5.01429072,199.43,199.35,35.86]
[1753167717114,5.01429072,199.43,199.36,7.25468574]
[1753167717115,26.0,199.39,199.36,7.25468574]
[1753167717326,0.71,199.38,199.35,35.86]
[1753167717619,7.25468574,199.37,199.33,35.86]
[1753167717928,0.71,199.36,199.33,43.11468574]
[1753167718120,33.96468574,199.39,199.33,43.11468574]
[1753167718623,7.25468574,199.38,199.33,35.86]
[1753167718828,5.72579976,199.37,199.33,35.86]
[1753167719215,5.01579976,199.37,199.33,43.11468574]
[1753167719844,0.71,199.36,199.33,35.86]
[1753167720141,0.71,199.35,199.33,35.86]
[1753167720347,5.01579976,199.37,199.33,35.86]
[1753167720516,5.72579976,199.37,199.33,35.86]
[1753167720718,38.2704855,199.37,199.33,35.86]
[1753167720920,26.0,199.33,199.3,35.82]
[1753167721220,26.0,199.33,199.24,7.25468574]
[1753167721221,26.0,199.29,199.24,7.25468574]
[1753167721422,26.0,199.29,199.25,35.84]
[1753167721423,0.71,199.28,199.25,35.84]
[1753167721728,69.6,199.32,199.27,7.25468574]
[1753167721917,12.2704855,199.37,199.31,7.25468574]
[1753167722121,26.0,199.34,199.33,7.25468574]
[1753167722337,74.61560002,199.38,199.33,7.25468574]
[1753167722641,74.61560002,199.38,199.35,7.25468574]
[1753167723142,5.01525349,199.4,199.35,7.25468574]
[1753167723329,5.01525349,199.4,199.35,0.7]
[1753167723522,0.06,199.37,199.36,7.25468574]
[1753167723850,34.02468574,199.37,199.31,35.86]
[1753167724144,34.02468574,199.37,199.31,43.11468574]
[1753167724342,26.0,199.35,199.31,35.86]
[1753167724524,26.0,199.35,199.33,7.25468574]
[1753167725045,5.78596508,199.37,199.34,10.78561682]
[1753167725229,5.07596508,199.37,199.35,3.53093108]
[1753167725430,5.07596508,199.37,199.36,3.53093108]
[1753167726923,0.06,199.37,199.36,10.78561682]
[1753167727228,0.06,199.37,199.36,11.48561682]
[1753167728042,0.06,199.37,199.36,16.50166818]
[1753167728652,0.06,199.37,199.36,52.36166818]
[1753167728856,0.06,199.37,199.36,69.14635215]
[1753167729239,0.06,199.37,199.36,95.14635215]
[1753167729431,0.06,199.37,199.36,47.32561682]
[1753167729629,0.06,199.37,199.36,39.37093108]
[1753167729847,0.06,199.37,199.36,46.62561682]
[1753167730450,0.06,199.37,199.36,39.37093108]
[1753167730639,0.06,199.37,199.36,46.62561682]
[1753167730834,0.06,199.37,199.36,3.53093108]
[1753167731149,13.0404855,199.37,199.36,3.53093108]
[1753167731732,29.82516947,199.37,199.27,7.25468574]
[1753167731942,7.25468574,199.32,199.23,0.7]
[1753167732140,7.25468574,199.29,199.24,35.86]
[1753167732449,7.96468574,199.29,199.23,7.25468574]
[1753167732747,26.0,199.26,199.23,7.25468574]
[1753167733655,31.01859379,199.26,199.23,7.25468574]
[1753167733851,31.01859379,199.26,199.22,43.11468574]
[1753167734333,31.01859379,199.26,199.22,35.86]
[1753167734649,26.0,199.26,199.22,43.11468574]
[1753167734854,26.0,199.27,199.23,7.95468574]
[1753167735035,31.01838713,199.27,199.23,7.25468574]
[1753167735350,5.01756146,199.3,199.25,7.25468574]
[1753167735554,31.01756146,199.3,199.25,7.25468574]
[1753167735853,31.01756146,199.3,199.25,7.95468574]
[1753167736437,31.01756146,199.3,199.26,7.95468574]
[1753167736637,26.0,199.28,199.27,35.84]
[1753167736854,5.01730971,199.31,199.27,35.84]
[1753167737150,5.01730971,199.31,199.27,43.09468574]
[1753167737642,5.01708424,199.32,199.29,7.25468574]
[1753167737844,31.01708424,199.32,199.29,7.25468574]
[1753167738147,31.72708424,199.32,199.28,7.25468574]
[1753167738457,31.01708424,199.32,199.28,7.25468574]
[1753167739049,31.01708424,199.32,199.29,7.25468574]
[1753167739353,31.01708424,199.32,199.28,7.25468574]
[1753167739557,31.01708424,199.32,199.29,0.7]
[1753167739558,26.0,199.32,199.29,0.7]
[1753167739734,26.0,199.32,199.29,7.95468574]
[1753167740136,69.6,199.34,199.3,7.25468574]
[1753167740335,0.06,199.37,199.33,7.25468574]
[1753167740536,26.0,199.36,199.35,7.25468574]
[1753167740839,0.06,199.37,199.35,7.25468574]
[1753167740840,0.06,199.37,199.35,7.95468574]
[1753167741042,26.06,199.37,199.36,7.25468574]
[1753167741245,0.06,199.37,199.36,7.25468574]
[1753167741556,26.0,199.35,199.27,0.7]
[1753167741753,33.96468574,199.35,199.29,7.25468574]
[1753167742346,7.25468574,199.34,199.28,43.05468574]
[1753167742566,33.96468574,199.35,199.29,7.25468574]
[1753167742946,26.0,199.31,199.24,0.7]
[1753167743140,5.01756146,199.3,199.25,35.82]
[1753167743336,5.01756146,199.3,199.25,43.07468574]
[1753167743761,7.25468574,199.27,199.18,0.03]
[1753167743959,26.0,199.25,199.2,7.25468574]
[1753167744163,0.71,199.24,199.21,3.33646493]
[1753167744338,33.25468574,199.25,199.22,3.33646493]
[1753167744539,33.25468574,199.25,199.19,43.09468574]
[1753167744540,7.25468574,199.24,199.19,35.84]
[1753167744745,26.0,199.21,199.2,3.34065468]
[1753167744966,33.96468574,199.21,199.2,3.34065468]
[1753167745256,38.98451406,199.21,199.2,3.34065468]
[1753167745664,55.76919803,199.21,199.2,3.34065468]
[1753167746947,47.80451229,199.21,199.2,3.34065468]
[1753167747154,54.20451229,199.21,199.2,3.34065468]
[1753167747648,61.45919803,199.21,199.2,3.34065468]
[1753167747959,32.4,199.21,199.2,3.34065468]
[1753167748165,1.5139,199.24,199.2,3.34065468]
[1753167748166,5.01907247,199.24,199.2,10.59534042]
[1753167748340,5.018832,199.25,199.21,10.59534042]
[1753167748543,166.48468397,199.29,199.18,0.03]
[1753167748544,15.52654211,199.3,199.22,4.04065468]
[1753167748744,12.9822472,199.3,199.24,7.25468574]
[1753167749064,12.9822472,199.3,199.25,3.3386756]
[1753167749250,31.72756146,199.3,199.26,3.3386756]
[1753167749458,5.72756146,199.3,199.27,3.3386756]
[1753167749649,26.71,199.29,199.28,3.3386756]
[1753167749848,50.74936971,199.29,199.28,3.3386756]
[1753167750237,86.58936971,199.29,199.28,3.3386756]
[1753167750483,26.0,199.25,199.18,0.03]
[1753167750776,7.25468574,199.23,199.18,0.03]
[1753167751071,69.6,199.24,199.18,7.28468574]
[1753167751275,69.6,199.24,199.2,7.25468574]
[1753167751563,69.6,199.24,199.22,7.25468574]
[1753167751763,69.6,199.24,199.23,7.95468574]
[1753167752153,69.6,199.24,199.23,7.25468574]
[1753167752357,69.6,199.24,199.18,0.03]
[1753167752549,76.85468574,199.23,199.18,0.03]
[1753167753262,69.6,199.23,199.19,7.25468574]
[1753167753465,69.6,199.23,199.19,7.95468574]
[1753167753683,69.6,199.23,199.19,7.25468574]
[1753167754171,74.6194002,199.23,199.18,7.28468574]
[1753167754349,75.3294002,199.23,199.18,0.03]
[1753167754548,82.58408594,199.23,199.18,0.03]
[1753167754771,74.6194002,199.23,199.18,0.03]
[1753167754942,7.96468574,199.22,199.18,0.03]
[1753167755146,5.01982832,199.21,199.18,0.03]
[1753167756351,12.27451406,199.21,199.18,0.03]
[1753167756567,5.01982832,199.21,199.18,0.03]
[1753167757880,66.85968721,199.22,199.18,0.03]
[1753167758369,33.25468574,199.19,199.18,0.03]
[1753167758868,69.74468574,199.19,199.18,0.03]
[1753167759269,60.52936971,199.19,199.18,0.03]
[1753167759971,65.54970205,199.19,199.18,0.03]
[1753167760675,65.54970205,199.19,199.18,1e-08]
[1753167761369,16.78468397,199.18,199.16,1e-08]
[1753167761551,59.83936971,199.17,199.14,1e-08]
[1753167761874,29.0607104,199.15,199.14,1e-08]
[1753167762170,29.0607104,199.15,199.1,0.03]
[1753167762171,42.78468397,199.11,199.1,0.03]
[1753167762369,85.85936971,199.11,199.1,1e-08]
[1753167762582,95.37305545,199.11,198.97,7.25468574]
[1753167762749,7.25468574,199.0,198.95,0.03]
[1753167763343,7.25468574,198.98,198.95,0.03]
[1753167763549,7.25468574,198.97,198.95,0.03]
[1753167763849,5.0261359,198.96,198.95,0.03]
[1753167764048,35.82,198.97,198.95,0.03]
[1753167764350,7.25468574,198.96,198.95,0.03]
[1753167764859,35.84,198.97,198.95,0.03]
[1753167765262,0.67,198.96,198.95,0.03]
[1753167765454,24.70936971,198.96,198.95,0.03]
[1753167765859,36.99019135,198.96,198.95,0.03]
[1753167766057,16.78468397,198.92,198.91,0.03]
[1753167766378,59.87936971,198.92,198.91,0.03]
[1753167766885,53.29468397,198.92,198.91,0.03]
[1753167767092,7.5991273,198.96,198.91,0.03]
[1753167767271,26.0,198.92,198.91,0.03]
[1753167768360,26.0,198.93,198.91,0.7]
[1753167768586,7.25468574,198.98,198.92,7.92468574]
[1753167768778,35.84,198.97,198.92,7.92468574]
[1753167768958,33.25468574,198.95,198.91,0.03]
[1753167769164,26.0,198.92,198.91,0.03]
[1753167769458,35.84,198.96,198.92,0.67]
[1753167769656,35.84,198.96,198.92,7.92468574]
[1753167769976,26.0,198.95,198.93,0.67]
[1753167770272,26.0,198.95,198.91,7.28468574]
[1753167770481,26.0,198.95,198.91,7.95468574]
[1753167770781,26.0,198.95,198.92,7.92468574]
[1753167771276,35.84,198.98,198.92,7.25468574]
[1753167771474,26.0,198.96,198.95,7.25468574]
[1753167771651,26.0,198.96,198.95,7.92468574]
[1753167771855,0.8,198.99,198.95,7.92468574]
[1753167772467,0.8,198.99,198.95,7.25468574]
[1753167772779,48.11959868,199.01,198.95,7.25468574]
[1753167773665,7.25468574,198.96,198.91,0.03]
[1753167773869,26.0,198.92,198.91,0.03]
[1753167774178,33.25468574,198.92,198.91,0.03]
[1753167774765,86.54936971,198.92,198.91,0.03]
[1753167775169,88.10906971,198.92,198.91,0.03]
[1753167775863,93.1362163,198.92,198.91,1e-08]
[1753167776067,93.1362163,198.92,198.87,0.03]
[1753167776068,42.78468397,198.88,198.87,0.03]
[1753167776272,85.87936971,198.88,198.87,0.03]
[1753167776478,86.54936971,198.88,198.87,0.03]
[1753167776679,100.24936971,198.88,198.87,0.03]
[1753167776883,100.24936971,198.88,198.84,0.03]
[1753167776884,26.0,198.85,198.84,0.03]
[1753167777183,42.78468397,198.81,198.8,0.03]
[1753167777381,85.89936971,198.81,198.8,0.03]
[1753167777687,86.56936971,198.81,198.8,0.03]
[1753167778089,91.59929778,198.81,198.8,0.03]
[1753167778588,16.78468397,198.8,198.79,0.2]
[1753167778786,24.70936971,198.8,198.79,0.2]
[1753167778975,24.70936971,198.8,198.79,1e-08]
[1753167779168,28.31697332,198.8,198.79,1e-08]
[1753167780271,12.57327638,198.84,198.79,1e-08]
[1753167780272,0.67,198.84,198.79,1e-08]
[1753167780476,42.82659585,198.98,198.79,0.67000001]
[1753167780477,69.6,198.83,198.79,0.67000001]
[1753167780791,67.16,198.91,198.82,10.86228935]
[1753167780964,67.16,198.9,198.83,0.51]
[1753167781168,67.16,198.9,198.79,6.92660001]
[1753167781363,35.94,198.89,198.84,10.86228935]
[1753167781670,35.94,198.89,198.82,0.51]
[1753167781886,73.56,198.9,198.86,10.86228935]
[1753167782192,67.16,198.89,198.87,10.86228935]
[1753167782368,67.16,198.89,198.87,15.89064331]
[1753167782566,67.16,198.89,198.88,10.86228935]
[1753167784897,67.16,198.89,198.86,10.86228935]
[1753167785192,67.16,198.89,198.79,6.41660001]
[1753167785193,26.0,198.85,198.79,1e-08]
[1753167785376,46.78228935,198.85,198.79,10.86228936]
[1753167785579,26.0,198.82,198.79,1e-08]
[1753167785770,26.0,198.82,198.79,10.86228936]
[1753167785974,26.0,198.82,198.79,1e-08]
[1753167787377,26.67,198.82,198.79,1e-08]
[1753167787580,36.59,198.81,198.79,1e-08]
[1753167788278,0.7,198.85,198.8,10.86228935]
[1753167788484,61.92,198.84,198.81,10.86228935]
[1753167788688,61.92,198.84,198.8,10.86228935]
[1753167789186,26.0,198.83,198.81,10.86228935]
[1753167789380,26.0,198.83,198.79,1e-08]
[1753167789687,0.7,198.88,198.82,10.86228935]
[1753167790012,0.7,198.92,198.87,10.86228935]
[1753167790317,35.94,198.96,198.91,10.86228935]
[1753167790607,26.0,198.94,198.93,10.86228935]
[1753167791406,26.0,198.95,198.93,10.86228935]
[1753167791615,26.0,198.95,198.94,10.86228935]
[1753167791776,0.06,198.97,198.94,10.86228935]
[1753167791984,0.06,198.97,198.89,78.72468397]
[1753167792178,26.06,198.97,198.94,10.86228935]
[1753167792405,0.06,198.97,198.96,10.86228935]
[1753167793602,0.06,198.97,198.96,11.37228935]
[1753167794223,0.06,198.97,198.96,16.39842525]
[1753167794511,11.56228935,199.05,198.88,10.0]
[1753167794681,37.56228935,199.04,198.97,10.86228935]
[1753167794885,26.7,199.04,198.99,10.86228935]
[1753167795202,0.7,199.03,198.98,10.86228935]
[1753167795517,0.7,199.03,198.94,0.51]
[1753167795690,0.7,199.03,198.98,10.86228935]
[1753167796401,0.7,199.03,198.99,3.24970173]
[1753167796604,36.86228935,199.04,198.98,10.86228935]
[1753167796605,0.7,199.02,198.98,10.86228935]
[1753167797103,39.7,199.04,198.98,10.86228935]
[1753167797316,31.02411946,199.04,198.98,10.86228935]
[1753167797978,26.0,199.04,198.99,10.86228935]
[1753167798615,26.0,199.04,199.02,10.86228935]
[1753167798801,36.02,199.09,199.02,10.86228935]
[1753167799009,0.1,199.09,199.05,10.86228935]
[1753167799330,26.0,199.07,199.04,10.86228935]
[1753167799530,0.8,199.09,199.04,10.86228935]
[1753167799709,26.0,199.08,199.0,0.51]
[1753167799896,26.0,199.08,199.04,10.86228935]
[1753167800094,26.0,199.07,199.02,5.02453004]
[1753167800299,5.02311303,199.08,198.95,16.78468397]
[1753167800630,0.7,199.07,199.02,10.86228935]
[1753167800822,26.0,199.05,199.02,10.86228935]
[1753167801515,10.86228935,199.03,198.97,10.86228935]